bitfinex/quotes_ETHUSD_20240608
["timestamp","ask_amount","ask_price","bid_price","bid_amount"]
[1717861535594,1.62127035,3694.4,3694.2,1.39285466]
[1717861538279,1.62127035,3694.3,3693.9,2.70715]
[1717861538477,1.62127035,3694.3,3693.9,4.10000466]
[1717861538660,1.62127035,3694.3,3693.9,2.70715]
[1717861538860,0.72,3694.4,3693.9,2.70715]
[1717861540598,1.30501432,3694.4,3693.9,2.70715]
[1717861540892,0.72,3694.4,3693.9,2.70715]
[1717861541086,1.30501432,3694.4,3693.9,2.70715]
[1717861541298,0.72,3694.4,3693.9,2.70715]
[1717861541811,1.30501432,3694.4,3693.9,2.70715]
[1717861542008,0.72,3694.4,3693.9,2.70715]
[1717861542171,1.30501432,3694.4,3693.9,2.70715]
[1717861542371,0.72,3694.4,3693.9,2.70715]
[1717861542683,1.30501432,3694.4,3693.9,2.70715]
[1717861542882,0.72,3694.4,3693.9,2.70715]
[1717861543100,1.30501432,3694.4,3693.9,2.70715]
[1717861543299,0.72,3694.4,3693.9,2.70715]
[1717861543609,0.72,3694.0,3693.5,5.10155]
[1717861543816,1.62112913,3693.9,3693.5,4.10030466]
[1717861543986,1.62112913,3693.8,3693.5,4.10030466]
[1717861545609,1.62112913,3693.9,3693.5,4.10030466]
[1717861547033,1.62112913,3693.9,3693.5,4.82174513]
[1717861548243,1.62112913,3693.9,3693.6,0.40927761]
[1717861551105,1.62112913,3694.0,3693.6,0.40927761]
[1717861551853,4.87868741,3694.2,3693.6,0.40927761]
[1717861551854,1.62112913,3693.9,3693.6,0.40927761]
[1717861552348,1.62112913,3694.0,3693.6,0.40927761]
[1717861552737,4.87868741,3694.2,3693.6,0.40927761]
[1717861552738,1.62112913,3693.9,3693.6,0.40927761]
[1717861557140,1.62112913,3693.8,3693.6,0.40927761]
[1717861562967,1.62112913,3693.8,3693.2,2.3941]
[1717861563146,1.62112913,3693.8,3693.7,0.40953766]
[1717861563344,1.62112913,3693.8,3693.3,1.39285466]
[1717861563545,2.87401432,3694.0,3693.7,0.40953766]
[1717861563758,1.62131797,3693.8,3693.3,1.39285466]
[1717861563963,1.62131797,3693.8,3693.2,2.3941]
[1717861564142,1.62131797,3693.7,3693.2,3.78695466]
[1717861564348,1.62131797,3693.7,3693.2,5.41442573]
[1717861564748,1.62131797,3693.8,3693.2,5.41442573]
[1717861564965,1.62131797,3693.8,3693.2,3.78695466]
[1717861565278,1.62131797,3693.7,3693.2,3.78695466]
[1717861569750,2.34131797,3693.6,3693.1,2.70774]
[1717861569950,0.72,3693.4,3692.8,7.48]
[1717861570154,0.72,3693.2,3692.8,7.48]
[1717861570375,1.62131797,3693.1,3692.7,4.97191]
[1717861570573,1.62131797,3693.1,3692.7,6.36476466]
[1717861570953,1.62131797,3693.0,3692.7,4.10086466]
[1717861571150,1.62131797,3693.0,3692.5,2.2639]
[1717861571391,1.62131797,3693.1,3692.5,2.2639]
[1717861572625,1.62131797,3693.1,3692.6,4.10094466]
[1717861574087,0.72,3693.3,3692.6,4.10094466]
[1717861574088,1.62131797,3693.2,3692.6,4.10094466]
[1717861577599,1.62131797,3693.1,3692.6,4.10094466]
[1717861578205,1.62131797,3693.2,3692.7,1.04659741]
[1717861578404,1.62131797,3693.2,3692.7,2.43945207]
[1717861579245,1.62131797,3693.1,3692.7,2.43945207]
[1717861579407,1.62131797,3693.1,3692.7,1.8029676]
[1717861581705,1.62131797,3693.2,3692.7,1.8029676]
[1717861582125,1.62131797,3693.1,3692.7,1.8029676]
[1717861584356,1.62131797,3693.0,3692.7,1.8029676]
[1717861584562,1.62131797,3693.1,3692.7,1.8029676]
[1717861585110,1.62131797,3693.0,3692.7,1.8029676]
[1717861586007,1.62131797,3693.1,3692.7,1.8029676]
[1717861586209,1.62131797,3693.0,3692.7,1.8029676]
[1717861586642,1.62131797,3693.1,3692.7,1.8029676]
[1717861587132,1.62131797,3693.0,3692.7,1.8029676]
[1717861587532,1.62131797,3693.0,3692.7,0.41011294]
[1717861587962,1.62131797,3693.0,3692.5,2.3093]
[1717861588149,1.62131797,3693.0,3692.8,0.41008522]
[1717861588382,1.62131797,3693.0,3692.5,2.3093]
[1717861588543,1.62131797,3693.0,3692.9,0.4100575]
[1717861588745,1.62131797,3693.0,3692.5,2.3093]
[1717861588947,1.62131797,3693.0,3692.9,0.4100575]
[1717861589557,1.62131797,3693.0,3692.5,2.3093]
[1717861589759,1.62131797,3693.1,3692.9,0.4100575]
[1717861590073,1.62131797,3693.1,3693.0,0.41002977]
[1717861590295,1.62131797,3693.1,3692.5,2.3093]
[1717861590484,1.62131797,3693.1,3693.0,0.41049241]
[1717861590688,1.62131797,3693.1,3692.5,2.3093]
[1717861590995,1.62131797,3693.1,3693.0,0.41049241]
[1717861591148,1.62131797,3693.1,3692.5,2.3093]
[1717861591352,1.62131797,3693.1,3693.0,0.41049241]
[1717861591548,0.72,3693.3,3692.5,2.3093]
[1717861591917,1.62049007,3693.0,3692.5,3.631069]
[1717861593295,1.62049007,3693.0,3692.6,0.4106033]
[1717861595688,1.62049007,3692.9,3692.6,0.4106033]
[1717861596366,1.62049007,3692.9,3692.6,1.50259363]
[1717861598087,2.20550439,3692.8,3692.6,1.50259363]
[1717861598294,0.72,3693.3,3692.6,1.50259363]
[1717861598295,2.20550439,3692.7,3692.6,1.50259363]
[1717861600205,0.58501432,3692.7,3692.6,1.50259363]
[1717861602256,0.58527837,3692.7,3692.6,1.50259363]
[1717861603661,2.20646374,3692.7,3692.6,1.50259363]
[1717861604056,0.58527837,3692.7,3692.6,1.50259363]
[1717861607726,3.1677,3693.3,3692.6,1.50259363]
[1717861608001,0.58524003,3693.2,3692.6,0.4106033]
[1717861608198,0.58524003,3693.1,3692.6,0.4106033]
[1717861608361,0.58524003,3693.0,3692.6,0.4106033]
[1717861608562,0.58524003,3692.9,3692.6,0.4106033]
[1717861608803,0.58524003,3692.8,3692.6,0.4106033]
[1717861609000,0.58524003,3692.7,3692.6,0.4106033]
[1717861610200,2.20653563,3692.7,3692.6,0.4106033]
[1717861611599,0.58524003,3692.7,3692.6,0.4106033]
[1717861614398,0.58527569,3692.7,3692.6,0.4106033]
[1717861628175,0.58527569,3692.7,3692.2,0.72]
[1717861628370,1.62124374,3692.5,3692.3,1.39285466]
[1717861628609,0.58527569,3692.4,3692.3,1.39285466]
[1717861629800,0.58527569,3692.4,3692.1,2.70846]
[1717861629801,2.20651943,3692.4,3692.1,2.70846]
[1717861630112,2.20652863,3692.3,3692.1,2.70846]
[1717861630312,0.58528489,3692.2,3692.1,2.70846]
[1717861630515,2.20652863,3692.2,3692.1,2.70846]
[1717861631937,1.62115152,3692.2,3692.1,2.70846]
[1717861632931,2.20648346,3692.2,3692.1,2.70846]
[1717861633153,1.62115152,3692.2,3692.1,2.70846]
[1717861633956,2.20648346,3692.2,3692.1,2.70846]
[1717861634261,1.62115152,3692.3,3692.1,2.70846]
[1717861634418,1.62115152,3692.3,3691.8,35.0]
[1717861634751,2.20648346,3692.2,3691.9,1.39285466]
[1717861634952,1.62115152,3692.2,3691.9,1.39285466]
[1717861635121,1.62115152,3692.3,3691.9,1.39285466]
[1717861635456,2.20648346,3692.3,3691.9,1.39285466]
[1717861635637,1.62115152,3692.3,3691.9,1.39285466]
[1717861636058,2.20648346,3692.3,3691.9,1.39285466]
[1717861636223,1.62115152,3692.3,3691.9,1.39285466]
[1717861636760,2.20648346,3692.3,3691.9,1.39285466]
[1717861636956,1.62115152,3692.3,3691.9,1.39285466]
[1717861637256,1.62115152,3692.3,3691.9,36.39285466]
[1717861637465,2.20648346,3692.3,3691.9,36.39285466]
[1717861637653,1.62115152,3692.3,3691.9,36.39285466]
[1717861638026,2.20648346,3692.3,3692.0,5.02594]
[1717861638221,4.01099234,3692.8,3692.0,6.81591566]
[1717861638222,1.62115152,3692.4,3692.0,6.81591566]
[1717861639061,1.62115152,3692.4,3692.0,7.53591566]
[1717861639471,2.20648346,3692.4,3692.0,7.53591566]
[1717861639669,1.62115152,3692.4,3692.0,7.53591566]
[1717861640161,1.62115152,3692.4,3692.0,6.81591566]
[1717861640470,2.20648346,3692.4,3692.0,6.81591566]
[1717861640768,1.62115152,3692.4,3692.0,6.81591566]
[1717861641262,1.62115152,3692.4,3692.1,1.39285466]
[1717861641466,1.62115152,3692.4,3692.2,2.70841]
[1717861641669,1.62115152,3692.5,3692.3,1.39285466]
[1717861642031,2.20648346,3692.5,3692.4,0.3970458]
[1717861642241,1.62115152,3692.5,3692.4,1.78990046]
[1717861643462,2.20648346,3692.5,3692.4,1.78990046]
[1717861643668,1.62115152,3692.5,3692.4,1.78990046]
[1717861644534,2.20648346,3692.5,3692.4,1.78990046]
[1717861644869,1.62115152,3692.5,3692.4,1.78990046]
[1717861645771,2.20648346,3692.5,3692.4,1.78990046]
[1717861646365,2.2069806,3692.5,3692.4,1.78990046]
[1717861646607,2.20698114,3692.5,3692.4,1.78990046]
[1717861646812,2.20698213,3692.5,3692.4,1.78990046]
[1717861647014,0.58533194,3692.5,3692.4,1.78990046]
[1717861649276,0.58533194,3692.5,3692.4,4.69643151]
[1717861649477,2.20701405,3692.5,3692.4,5.41643151]
[1717861649876,1.62168211,3692.7,3692.5,5.16489]
[1717861650199,0.58533194,3692.9,3692.7,2.70804]
[1717861650200,0.58533194,3692.8,3692.7,2.70804]
[1717861650389,1.62168211,3693.0,3692.7,4.48465238]
[1717861650589,2.20701405,3692.9,3692.8,1.39285466]
[1717861650817,2.20701405,3692.9,3692.8,1.77644685]
[1717861651218,0.58533194,3692.9,3692.8,1.77644685]
[1717861651725,0.58533194,3692.9,3692.8,0.38359219]
[1717861652045,0.58533194,3692.9,3692.2,5.88504]
[1717861652248,2.2579,3693.1,3692.8,0.38359219]
[1717861652389,0.5852681,3693.0,3692.4,2.70825]
[1717861652589,2.2579,3693.1,3692.5,1.77653003]
[1717861652590,1.62174597,3692.8,3692.5,1.77653003]
[1717861652803,2.20701407,3692.8,3692.5,1.77653003]
[1717861652997,1.62174597,3692.8,3692.5,1.77653003]
[1717861653198,0.5852681,3692.7,3692.5,1.77653003]
[1717861653638,2.20701061,3692.7,3692.5,1.77653003]
[1717861654346,1.62175605,3692.7,3692.5,1.77653003]
[1717861654633,1.62175605,3692.8,3692.5,1.77653003]
[1717861654854,2.20701061,3692.8,3692.5,1.77653003]
[1717861654983,1.62175605,3692.8,3692.5,3.26267803]
[1717861655189,1.62175605,3692.9,3692.6,2.7081]
[1717861655514,1.62175605,3692.9,3692.7,1.77634825]
[1717861655709,2.20701061,3692.9,3692.7,1.77634825]
[1717861656000,1.62175605,3692.9,3692.7,1.77634825]
[1717861656338,1.62175605,3693.0,3692.7,1.77634825]
[1717861656705,2.20701061,3693.0,3692.7,1.77634825]
[1717861656889,1.62175605,3693.0,3692.7,1.77634825]
[1717861657881,2.20701061,3693.0,3692.7,1.77634825]
[1717861658137,1.62175605,3693.0,3692.7,1.77634825]
[1717861659747,2.20701061,3693.0,3692.7,1.77634825]
[1717861659913,1.62175605,3693.0,3692.7,1.77634825]
[1717861662123,1.62175605,3692.9,3692.7,1.77634825]
[1717861662743,1.62175605,3693.0,3692.7,1.77634825]
[1717861663041,2.20701061,3693.0,3692.7,1.77634825]
[1717861663260,1.62175605,3693.0,3692.7,1.77634825]
[1717861663924,2.20701061,3693.0,3692.7,1.77634825]
[1717861664252,3.95822562,3693.4,3692.7,1.77634825]
[1717861664253,1.62175605,3692.9,3692.7,1.77634825]
[1717861666163,1.62277481,3692.9,3692.7,1.77634825]
[1717861666557,2.20800101,3692.9,3692.7,1.77634825]
[1717861666762,1.62277481,3692.9,3692.7,1.77634825]
[1717861667653,2.20800101,3692.9,3692.7,1.77634825]
[1717861667855,1.62277481,3692.9,3692.7,1.77634825]
[1717861668753,2.20800101,3692.9,3692.7,1.77634825]
[1717861669131,1.62277481,3692.9,3692.7,1.77634825]
[1717861670066,2.20800101,3692.9,3692.7,1.77634825]
[1717861670271,2.20800101,3692.8,3692.7,1.77634825]
[1717861670434,1.62277481,3692.8,3692.7,1.77634825]
[1717861671673,2.20800101,3692.8,3692.7,1.77634825]
[1717861671848,1.62277481,3692.8,3692.7,1.77634825]
[1717861673046,2.20800101,3692.8,3692.7,1.77634825]
[1717861673259,1.62277481,3692.8,3692.7,1.77634825]
[1717861674369,2.20800101,3692.8,3692.7,1.77634825]
[1717861674536,1.62277481,3692.8,3692.7,1.77634825]
[1717861675279,2.20800101,3692.8,3692.7,1.77634825]
[1717861678086,2.20796131,3692.8,3692.7,1.77634825]
[1717861678250,0.58522837,3692.8,3692.7,1.77634825]
[1717861683395,0.58522813,3692.8,3692.7,1.77634825]
[1717861683587,0.58522813,3692.8,3692.7,2.54246308]
[1717861683757,1.62240262,3693.0,3692.8,2.70797]
[1717861683957,1.62240262,3693.1,3692.9,4.38245466]
[1717861684215,1.62240262,3693.2,3692.9,4.7654335]
[1717861684419,0.58514915,3693.1,3693.0,0.82395183]
[1717861684729,0.58514915,3693.1,3693.0,2.59975761]
[1717861684889,0.58515157,3693.1,3693.0,2.59975761]
[1717861685331,1.62266419,3693.2,3693.0,2.59975761]
[1717861685517,1.62266419,3693.2,3693.1,1.39285466]
[1717861685718,2.20781562,3693.2,3693.1,1.39285466]
[1717861685921,2.20781562,3693.2,3693.1,3.32551082]
[1717861686111,1.62266419,3693.5,3693.2,2.70767]
[1717861686409,1.62266419,3693.6,3693.3,1.77572262]
[1717861686625,0.58515143,3693.5,3693.3,1.77572262]
[1717861686801,2.20781562,3693.5,3693.4,2.70753]
[1717861687007,0.58515143,3693.5,3693.4,4.48322491]
[1717861687184,1.62266419,3693.7,3693.4,4.48322491]
[1717861687389,1.62266419,3693.7,3693.5,1.39285466]
[1717861687691,1.62282834,3694.0,3693.5,1.775264]
[1717861688235,1.62282834,3694.1,3693.5,1.775264]
[1717861689086,1.62282834,3694.0,3693.5,1.775264]
[1717861689318,1.62282834,3694.1,3693.5,1.775264]
[1717861690024,1.62282834,3694.1,3693.6,2.70737]
[1717861690250,2.20790555,3694.3,3693.7,1.39285466]
[1717861690403,1.62282834,3694.4,3693.7,4.04339633]
[1717861691851,2.34282834,3694.4,3693.7,4.04339633]
[1717861693041,1.62282834,3694.4,3693.7,4.04339633]
[1717861694106,4.75472834,3694.5,3693.7,4.04339633]
[1717861694637,4.03472834,3694.5,3693.8,2.70717]
[1717861694809,4.75472834,3694.5,3693.9,1.39285466]
[1717861695007,4.75472834,3694.5,3693.9,1.77462758]
[1717861695312,3.1319,3694.5,3693.9,1.77462758]
[1717861697453,0.72,3694.5,3693.9,1.77462758]
[1717861702110,2.4119,3694.2,3693.9,0.38177292]
[1717861702311,3.1319,3694.2,3693.9,0.38177292]
[1717861702816,3.1319,3694.2,3693.5,7.48]
[1717861703017,3.1319,3694.2,3694.0,0.36888985]
[1717861703222,3.1319,3694.2,3693.5,8.87285466]
[1717861703461,3.1319,3694.2,3694.1,0.36886214]
[1717861703647,3.65500568,3694.2,3693.5,8.87285466]
[1717861703850,3.65500568,3694.2,3694.1,0.36886214]
[1717861704158,3.65500568,3694.2,3693.5,8.87285466]
[1717861704356,3.1319,3694.2,3694.1,0.36886214]
[1717861704673,3.1319,3694.2,3694.1,0.36898459]
[1717861704828,3.1319,3694.2,3693.5,8.87285466]
[1717861705033,3.1319,3694.2,3694.1,0.36898459]
[1717861705226,3.1319,3694.2,3693.5,8.87285466]
[1717861705445,3.1319,3694.2,3694.1,0.36898459]
[1717861705674,3.65500568,3694.2,3693.5,8.87285466]
[1717861705835,3.65500568,3694.2,3694.1,0.36898459]
[1717861706153,3.65500568,3694.2,3693.5,8.87285466]
[1717861706725,3.65500568,3694.2,3693.6,0.36912313]
[1717861708161,5.27861185,3694.2,3693.6,0.36912313]
[1717861711371,2.86671185,3694.2,3693.6,0.36912313]
[1717861711571,1.62360617,3694.1,3693.6,1.76197779]
[1717861714577,1.62360617,3694.0,3693.7,2.70729]
[1717861714795,1.62360617,3694.1,3693.8,0.36912384]
[1717861715075,1.62360617,3694.1,3693.7,2.70729]
[1717861715241,1.62360617,3694.0,3693.9,0.36909613]
[1717861715434,1.62360617,3694.0,3693.7,2.70729]
[1717861715637,1.62360617,3694.0,3693.9,0.36909613]
[1717861715878,1.62360617,3694.0,3693.7,2.70729]
[1717861716086,1.62360617,3694.0,3693.9,0.36909613]
[1717861716379,1.62360617,3694.0,3693.8,0.36912384]
[1717861716534,1.62360617,3694.0,3693.9,0.36909613]
[1717861716735,1.62360617,3694.0,3693.7,2.70729]
[1717861716989,1.62360617,3694.0,3693.8,0.36912384]
[1717861717287,1.62360617,3694.0,3693.7,2.70729]
[1717861717437,1.62360617,3694.0,3693.9,0.36909613]
[1717861717639,1.62360617,3694.0,3693.7,2.70729]
[1717861717982,1.62360617,3694.0,3693.8,0.36912384]
[1717861718304,1.62360617,3694.0,3693.7,2.70729]
[1717861718595,1.62360617,3694.0,3693.8,0.36912384]
[1717861718780,1.62360617,3694.0,3693.7,2.70729]
[1717861718980,2.20864486,3694.0,3693.8,0.36912384]
[1717861719302,1.62360617,3694.0,3693.7,2.70729]
[1717861719460,1.62360617,3694.0,3693.9,0.36909613]
[1717861719804,0.58503869,3694.0,3693.9,0.36909613]
[1717861719966,0.58503869,3694.1,3693.7,2.70729]
[1717861720164,1.62427007,3693.9,3693.8,0.36904221]
[1717861720370,1.62427007,3693.9,3693.7,2.70729]
[1717861720570,1.62427007,3693.9,3693.8,0.36904221]
[1717861721294,1.62427007,3693.9,3693.7,2.70729]
[1717861721499,1.62427007,3693.9,3693.8,0.36904221]
[1717861721933,1.62427007,3693.9,3693.7,2.70729]
[1717861722167,1.62427007,3693.9,3693.8,0.36904221]
[1717861722421,1.62427007,3693.9,3693.7,2.70729]
[1717861722620,1.62427007,3693.9,3693.8,0.36904221]
[1717861722828,1.62427007,3693.9,3693.7,2.70729]
[1717861722982,1.62427007,3693.9,3693.8,0.36904221]
[1717861723190,1.62427007,3693.9,3693.7,2.70729]
[1717861723519,1.62427007,3693.9,3693.8,0.36904221]
[1717861724332,1.62427007,3693.9,3693.7,2.70729]
[1717861724514,1.62427007,3693.9,3693.8,0.36904221]
[1717861724912,1.62427007,3693.9,3693.7,2.70729]
[1717861725092,1.62427007,3693.9,3693.8,0.36904221]
[1717861725294,2.20930876,3693.9,3693.8,0.36904221]
[1717861725494,1.62427007,3693.9,3693.7,2.70729]
[1717861725722,1.62427007,3693.9,3693.8,0.36903197]
[1717861726110,1.62427007,3693.9,3693.7,2.70729]
[1717861726313,2.20930876,3693.9,3693.8,0.36903197]
[1717861726512,1.62427007,3693.9,3693.8,0.36903197]
[1717861726722,1.62427007,3693.9,3693.7,2.70729]
[1717861726925,1.62427007,3693.9,3693.8,0.36903197]
[1717861727314,2.20930876,3693.9,3693.7,2.70729]
[1717861727525,1.62427007,3693.9,3693.8,0.36903197]
[1717861727889,1.62427007,3693.9,3693.7,2.70729]
[1717861728116,1.62427007,3693.9,3693.8,0.36903197]
[1717861728495,1.62427007,3693.9,3693.7,2.70729]
[1717861728732,1.62427007,3693.9,3693.8,0.36903197]
[1717861729037,1.62427007,3693.9,3693.7,2.70729]
[1717861729257,1.62427007,3693.9,3693.8,0.36903197]
[1717861729541,1.62427007,3693.9,3693.7,2.70729]
[1717861729740,1.62427007,3693.9,3693.8,0.36903197]
[1717861729935,2.20930876,3693.9,3693.8,0.36903197]
[1717861730139,1.62427007,3693.9,3693.7,2.70729]
[1717861730348,1.62427007,3693.9,3693.8,0.36903197]
[1717861730708,1.62427007,3693.9,3693.7,2.70729]
[1717861730915,2.20930876,3693.9,3693.8,0.36903197]
[1717861731229,1.62427007,3693.9,3693.8,1.39285466]
[1717861731427,1.62427007,3693.9,3693.8,4.09408663]
[1717861731614,2.20930876,3693.9,3693.8,4.09408663]
[1717861731813,1.62427007,3693.9,3693.8,4.09408663]
[1717861732203,1.62427007,3694.0,3693.8,4.09408663]
[1717861732405,2.20930876,3694.0,3693.8,4.09408663]
[1717861732632,1.62427007,3694.0,3693.8,4.09408663]
[1717861733010,2.20930876,3694.0,3693.8,4.09408663]
[1717861733355,1.62427007,3694.0,3693.9,2.70716]
[1717861733648,1.62427007,3694.0,3693.9,4.46901893]
[1717861734249,1.62427007,3694.1,3693.9,4.46901893]
[1717861734439,2.20930876,3694.1,3693.9,4.46901893]
[1717861734640,1.62427007,3694.1,3693.9,4.46901893]
[1717861734837,2.20930876,3694.1,3693.9,4.46901893]
[1717861735040,1.62427007,3694.1,3693.9,4.46901893]
[1717861735247,2.20930876,3694.1,3693.9,4.46901893]
[1717861735548,1.62427007,3694.1,3693.9,4.46901893]
[1717861735754,2.20930876,3694.1,3693.9,4.46901893]
[1717861735949,1.62427007,3694.1,3693.9,4.46901893]
[1717861736127,2.20930876,3694.1,3693.9,4.46901893]
[1717861736461,1.62427007,3694.1,3693.9,4.46901893]
[1717861736659,2.20930876,3694.1,3693.9,4.46901893]
[1717861736950,1.62427007,3694.1,3693.9,4.46901893]
[1717861737145,2.20930876,3694.1,3693.9,4.46901893]
[1717861737449,1.62427007,3694.1,3693.9,4.46901893]
[1717861737652,2.20930876,3694.1,3693.9,4.46901893]
[1717861737813,1.62427007,3694.1,3693.9,4.46901893]
[1717861738013,2.20930876,3694.1,3693.9,4.46901893]
[1717861738253,1.62427007,3694.1,3693.9,4.46901893]
[1717861738544,2.20930876,3694.1,3693.9,4.46901893]
[1717861738842,1.62427007,3694.1,3693.9,4.46901893]
[1717861739145,1.62439788,3694.0,3693.9,4.46901893]
[1717861739943,2.20943034,3694.1,3693.9,4.46901893]
[1717861740114,1.62439788,3694.1,3693.9,4.46901893]
[1717861740317,1.62439788,3694.0,3693.9,4.46901893]
[1717861741725,1.62433022,3694.1,3693.9,4.46901893]
[1717861741928,2.20936114,3694.1,3693.9,4.46901893]
[1717861742124,1.62433022,3694.1,3693.9,4.46901893]
[1717861742314,1.62433022,3694.0,3693.9,4.46901893]
[1717861743155,1.62433022,3694.1,3693.9,4.46901893]
[1717861743355,1.62433022,3694.0,3693.9,4.46901893]
[1717861744419,1.62433022,3694.1,3693.9,4.46901893]
[1717861744619,2.20936114,3694.1,3693.9,4.46901893]
[1717861744939,1.62433022,3694.0,3693.9,4.46901893]
[1717861745256,1.62433022,3694.1,3693.9,4.46901893]
[1717861745448,2.20936114,3694.1,3693.9,4.46901893]
[1717861745620,1.62433022,3694.0,3693.9,4.46901893]
[1717861748720,1.62354469,3694.0,3693.9,4.46901893]
[1717861749345,1.62354469,3694.0,3693.9,4.10001466]
[1717861749760,1.62354469,3694.0,3693.9,4.46876646]
[1717861752469,0.72,3694.4,3693.9,4.46876646]
[1717861752676,0.31311,3694.3,3693.9,4.46876646]
[1717861753361,1.62379286,3694.0,3693.9,4.46876646]
[1717861753757,1.70398865,3694.2,3693.9,4.46876646]
[1717861754064,0.58505689,3694.1,3693.9,4.46876646]
[1717861754262,0.58505689,3694.0,3693.9,4.46876646]
[1717861755637,0.58505689,3694.0,3693.9,3.0759118]
[1717861755961,4.00066144,3694.0,3693.9,0.3687518]
[1717861756150,5.98864819,3694.0,3693.9,0.3687518]
[1717861756331,2.4667,3693.9,3693.1,2.70774]
[1717861756573,2.34347198,3693.4,3693.1,2.70774]
[1717861756741,1.62347198,3693.3,3693.2,0.36896108]
[1717861757270,1.62347198,3693.4,3693.2,0.36896108]
[1717861758280,1.62347198,3693.5,3693.2,0.36896108]
[1717861759491,2.34347198,3693.6,3693.2,0.36896108]
[1717861763043,1.62347198,3693.7,3693.2,0.36896108]
[1717861763248,2.34347198,3693.7,3693.2,0.36896108]
[1717861764075,1.62347198,3693.7,3693.2,0.36896108]
[1717861764281,2.92852887,3693.8,3693.2,0.36896108]
[1717861764451,2.34347198,3693.8,3693.2,0.36896108]
[1717861765599,1.62347198,3693.8,3693.2,0.36896108]
[1717861766159,3.1867,3693.9,3693.2,0.36896108]
[1717861766351,0.72,3693.9,3693.3,1.39285466]
[1717861766678,1.62347198,3694.0,3693.4,2.68216282]
[1717861766850,1.62347198,3694.0,3693.5,4.10030466]
[1717861767053,1.62347198,3694.1,3693.6,0.36920739]
[1717861767289,1.62347198,3694.1,3693.6,1.76206205]
[1717861769298,1.62347198,3694.2,3693.6,1.76206205]
[1717861769793,1.62347198,3694.1,3693.6,1.76206205]
[1717861770599,1.62347198,3694.2,3693.6,1.76206205]
[1717861772770,1.62347198,3694.2,3693.7,2.07109587]
[1717861772975,0.58505689,3694.6,3693.8,2.3129]
[1717861772976,2.42112839,3694.5,3693.8,2.3129]
[1717861773202,0.72,3694.5,3693.8,4.07478923]
[1717861774410,1.70112839,3694.6,3693.8,4.89283727]
[1717861774616,3.00618528,3694.7,3693.8,7.60000727]
[1717861774789,3.00618528,3694.7,3693.8,6.78195923]
[1717861774985,2.28618528,3694.7,3694.1,2.70698]
[1717861775210,1.70112839,3694.9,3694.2,3.70575466]
[1717861775416,6.00618718,3695.0,3694.2,4.07467841]
[1717861777210,4.30505879,3695.0,3694.2,4.07467841]
[1717861778010,0.72,3694.8,3694.2,4.07467841]
[1717861801145,0.58494246,3695.0,3694.4,2.2946]
[1717861801343,1.9e-06,3695.0,3694.5,0.36862012]
[1717861801700,0.7200019,3695.0,3694.6,2.2946]
[1717861801900,1.12111815,3695.0,3694.7,0.36856472]
[1717861804208,1.9e-06,3695.0,3694.7,0.36856472]
[1717861811965,0.7200019,3695.0,3694.7,0.36856472]
[1717861814869,1.9e-06,3695.0,3694.7,0.36856472]
[1717861823971,0.58492817,3695.3,3695.0,2.3006]
[1717861824268,0.58492817,3696.7,3695.3,2.3006]
[1717861824470,0.72,3696.5,3695.4,1.39285466]
[1717861824672,0.73257458,3696.4,3695.4,1.7604718]
[1717861824850,0.14764641,3696.4,3695.4,1.7604718]
[1717861825173,0.14764641,3696.4,3695.4,4.4665218]
[1717861826251,0.86764641,3696.4,3695.4,4.4665218]
[1717861827208,1.70143126,3696.3,3695.4,4.4665218]
[1717861827409,4.70143126,3696.3,3695.4,4.4665218]
[1717861828108,3.0,3696.3,3695.4,4.4665218]
[1717861828623,2.56907767,3696.4,3695.4,4.4665218]
[1717861828772,3.0,3696.3,3695.4,4.4665218]
[1717861829707,3.86764641,3696.4,3695.4,4.4665218]
[1717861830037,3.86764641,3696.4,3695.5,2.4599]
[1717861830168,3.86764641,3696.4,3695.5,3.85275466]
[1717861830365,3.86764641,3696.4,3695.5,4.61739684]
[1717861830606,3.86764641,3696.4,3695.6,0.36678171]
[1717861833506,2.4004,3696.3,3695.6,0.36678171]
[1717861833672,3.72,3696.3,3695.6,0.36678171]
[1717861834108,3.0,3696.2,3695.6,0.36678171]
[1717861834289,0.72,3696.3,3695.6,0.36678171]
[1717861834728,3.72,3696.3,3695.6,0.36678171]
[1717861835032,0.72,3696.3,3695.6,0.36678171]
[1717861842646,0.14764641,3696.4,3695.6,0.36678171]
[1717861842841,0.86764641,3696.4,3695.6,0.36678171]
[1717861843071,0.14764641,3696.4,3695.6,0.36678171]
[1717861843262,0.86764641,3696.4,3695.6,0.36678171]
[1717861851701,0.14764641,3696.4,3695.6,0.36678171]
[1717861852016,0.86764641,3696.4,3695.6,0.36678171]
[1717861853325,0.58476135,3696.3,3695.6,0.36678171]
[1717861853504,0.58476135,3696.2,3695.6,0.36678171]
[1717861853696,0.58476135,3696.3,3695.6,0.36678171]
[1717861853896,0.58476135,3696.2,3695.6,0.36678171]
[1717861854096,0.58476135,3696.3,3695.6,0.36678171]
[1717861854412,0.58476135,3696.2,3695.6,0.36678171]
[1717861854623,0.58476135,3696.1,3695.6,0.36678171]
[1717861854824,0.58476135,3696.3,3695.6,0.36678171]
[1717861854983,0.58476135,3696.2,3695.6,0.36678171]
[1717861855314,0.58476135,3696.1,3695.6,0.36678171]
[1717861855519,0.86764641,3696.4,3695.6,0.36678171]
[1717861855734,0.58476295,3696.3,3695.6,0.36678171]
[1717861855938,1.30476295,3696.2,3695.6,0.36678171]
[1717861856103,0.58476295,3696.1,3695.6,0.36678171]
[1717861863113,0.58476572,3696.1,3695.6,0.36678171]
[1717861864747,0.58476572,3696.2,3695.6,0.36678171]
[1717861864949,0.58476572,3696.1,3695.6,0.36678171]
[1717861865143,0.58476572,3696.2,3695.6,0.36678171]
[1717861865643,0.58476572,3696.1,3695.6,0.36678171]
[1717861865846,0.58476572,3696.2,3695.6,0.36678171]
[1717861866043,0.58476572,3696.1,3695.6,0.36678171]
[1717861866249,2.28526157,3696.2,3695.6,0.36678171]
[1717861866563,0.58476572,3696.1,3695.6,0.36678171]
[1717861868448,2.28526157,3696.1,3695.6,0.36678171]
[1717861868853,1.70049585,3696.1,3695.6,0.36678171]
[1717861869060,2.28526157,3696.1,3695.6,0.36678171]
[1717861869221,1.70514411,3695.9,3695.6,0.36678171]
[1717861871862,1.70514411,3695.9,3695.7,1.39285466]
[1717861872349,1.70514411,3695.9,3695.7,1.7893196]
[1717861878567,1.70514411,3696.0,3695.7,1.7893196]
[1717861878854,1.70514411,3696.1,3695.7,1.7893196]
[1717861885076,1.70471653,3696.1,3695.7,1.7893196]
[1717861887567,0.58476066,3696.3,3695.7,1.7893196]
[1717861887728,1.70463902,3696.1,3695.7,1.7893196]
[1717861889368,1.70463902,3696.1,3695.7,0.39646494]
[1717861889564,2.3319792,3695.8,3695.7,0.39646494]
[1717861889763,2.3319792,3695.8,3695.4,2.70605]
[1717861889764,4.03661822,3695.8,3695.4,2.70605]
[1717861889963,2.3319792,3695.8,3695.7,0.39639358]